bitfinex/quotes_SOLUSD_20251103
["timestamp","ask_amount","ask_price","bid_price","bid_amount"]
[1762186829917,0.14216157,168.96,168.95,3.49117231]
[1762186830328,21.29784947,168.96,168.95,3.49117231]
[1762186830717,16.42738829,168.96,168.95,3.49117231]
[1762186830941,21.29784947,168.96,168.95,3.49117231]
[1762186831447,34.52404666,168.96,168.95,3.49117231]
[1762186831649,21.29784947,168.96,168.95,3.49117231]
[1762186831948,37.01938829,168.96,168.95,3.08117231]
[1762186832116,41.88984947,168.96,168.95,3.08117231]
[1762186832318,42.03201104,168.96,168.95,3.08117231]
[1762186832813,59.79124399,168.96,168.95,3.08117231]
[1762186833340,59.79124399,168.96,168.83,5.92277761]
[1762186833341,0.14216157,168.9,168.84,1.84284425]
[1762186833540,0.14216157,168.9,168.81,4.87046118]
[1762186833541,5.01262275,168.86,168.81,4.87046118]
[1762186833743,4.87046118,168.88,168.84,1.84284425]
[1762186833944,9.93098926,168.88,168.85,6.71330543]
[1762186834119,5.92171492,168.87,168.85,1.84284425]
[1762186834323,0.14216157,168.88,168.86,4.87046118]
[1762186834522,9.78882769,168.9,168.85,1.84284425]
[1762186834831,0.14216157,168.89,168.85,1.84284425]
[1762186835032,5.63262275,168.89,168.85,1.84284425]
[1762186835232,0.76216157,168.89,168.85,1.84284425]
[1762186835532,0.14216157,168.86,168.84,1.84284425]
[1762186835730,0.14216157,168.86,168.81,1.84284425]
[1762186835731,5.01262275,168.86,168.81,1.84284425]
[1762186835938,0.14216157,168.86,168.82,1.84284425]
[1762186836140,0.14216157,168.86,168.84,1.84284425]
[1762186836317,20.592,168.9,168.85,4.87046118]
[1762186836515,9.93098926,168.91,168.88,4.87046118]
[1762186836820,20.592,168.92,168.85,1.84284425]
[1762186837020,0.14216157,168.87,168.84,1.84284425]
[1762186837240,9.93098926,168.85,168.81,4.87046118]
[1762186837475,9.93098926,168.85,168.79,0.67]
[1762186837476,14.80145044,168.83,168.79,1.84284425]
[1762186837656,9.93098926,168.79,168.78,0.2]
[1762186837820,9.93098926,168.79,168.78,2.04284425]
[1762186838016,5.01262275,168.79,168.78,0.2]
[1762186838247,11.55714434,168.79,168.78,0.2]
[1762186838764,11.55714434,168.79,168.75,0.2]
[1762186838765,56.74927601,168.79,168.75,0.2]
[1762186839062,25.60462275,168.76,168.75,0.2]
[1762186839368,0.14216157,168.75,168.66,1.84284425]
[1762186839530,0.14216157,168.75,168.63,6.71330543]
[1762186839531,4.87046118,168.69,168.63,6.71330543]
[1762186839735,0.14216157,168.7,168.66,6.71330543]
[1762186839957,0.14216157,168.7,168.67,2.04284425]
[1762186840140,9.78882769,168.69,168.67,1.54284425]
[1762186840471,0.14216157,168.66,168.61,0.67]
[1762186840636,4.87046118,168.65,168.59,1.54284425]
[1762186840836,9.93098926,168.64,168.62,1.54284425]
[1762186841057,9.93098926,168.65,168.63,4.87046118]
[1762186841363,9.93098926,168.65,168.63,1.54284425]
[1762186841671,0.14216157,168.65,168.63,1.54284425]
[1762186842159,9.93098926,168.68,168.64,1.54284425]
[1762186842346,9.93098926,168.68,168.66,4.87046118]
[1762186842550,0.14216157,168.68,168.65,1.54284425]
[1762186842737,0.14216157,168.68,168.65,6.41330543]
[1762186842936,6.07069422,168.68,168.65,6.41330543]
[1762186843136,6.07069422,168.68,168.63,6.41330543]
[1762186843332,0.14216157,168.66,168.59,1.54284425]
[1762186843565,0.14216157,168.66,168.62,4.87046118]
[1762186843759,0.14216157,168.66,168.57,0.67]
[1762186843760,0.14216157,168.66,168.61,1.54284425]
[1762186843960,0.14216157,168.66,168.61,4.87046118]
[1762186844151,0.14216157,168.64,168.6,1.54284425]
[1762186844353,9.93098926,168.64,168.59,4.87046118]
[1762186844669,0.14216157,168.64,168.61,1.54284425]
[1762186844853,0.14216157,168.64,168.6,4.87046118]
[1762186844854,0.14216157,168.62,168.56,1.54284425]
[1762186845053,0.14216157,168.64,168.6,1.54284425]
[1762186845254,4.87046118,168.61,168.58,1.54284425]
[1762186845448,0.52,168.63,168.5,6.60462893]
[1762186845449,4.87046118,168.59,168.54,4.87046118]
[1762186845651,0.14216157,168.58,168.54,4.87046118]
[1762186845851,0.14216157,168.58,168.56,1.54284425]
[1762186846061,0.14216157,168.58,168.54,4.87046118]
[1762186846253,0.14216157,168.6,168.57,4.87046118]
[1762186846459,14.82272026,168.66,168.56,1.54284425]
[1762186846460,18.15230481,168.69,168.6,1.54284425]
[1762186846652,20.58767397,168.68,168.62,1.54284425]
[1762186846846,4.87046118,168.66,168.62,1.54284425]
[1762186847047,0.14216157,168.66,168.62,1.54284425]
[1762186847275,0.66216157,168.66,168.62,1.54284425]
[1762186847568,9.78882769,168.68,168.65,6.41330543]
[1762186847758,9.78882769,168.68,168.66,4.87046118]
[1762186848143,9.78882769,168.68,168.54,20.592]
[1762186848346,9.78882769,168.68,168.41,100.2]
[1762186848347,9.93098926,168.59,168.55,0.67]
[1762186848567,0.14216157,168.63,168.55,0.67]
[1762186848749,0.14216157,168.64,168.61,4.87046118]
[1762186849062,0.14216157,168.64,168.59,4.87046118]
[1762186849269,14.65928887,168.61,168.44,1.99999999]
[1762186849471,0.14216157,168.6,168.57,4.87046118]
[1762186849674,0.14216157,168.57,168.52,4.87046118]
[1762186849979,9.93098926,168.57,168.55,4.87046118]
[1762186850154,0.14216157,168.61,168.56,4.87046118]
[1762186850472,5.9283851,168.68,168.53,21.43752099]
[1762186850658,20.592,168.65,168.53,21.43752099]
[1762186850855,20.592,168.65,168.54,0.67]
[1762186851065,30.38082769,168.68,168.54,0.67]
[1762186851277,0.14216157,168.66,168.54,0.67]
[1762186851487,8.75574182,168.67,168.54,0.67]
[1762186851691,14.67430598,168.68,168.54,0.67]
[1762186851873,9.78882769,168.68,168.54,0.67]
[1762186852081,14.67430598,168.68,168.54,0.67]
[1762186852263,14.67430598,168.64,168.55,5.93295757]
[1762186852469,0.14216157,168.65,168.54,6.60322849]
[1762186852669,0.14216157,168.65,168.54,21.43650249]
[1762186852992,9.78882769,168.64,168.55,0.67]
[1762186853200,9.78882769,168.66,168.55,0.67]
[1762186853574,9.78882769,168.68,168.55,0.67]
[1762186853768,17.79793809,168.69,168.55,0.67]
[1762186853769,9.78882769,168.66,168.55,0.67]
[1762186854091,3.86654707,168.66,168.55,0.67]
[1762186854307,9.78882769,168.64,168.55,0.67]
[1762186854463,9.93098926,168.66,168.55,6.60292957]
[1762186854664,9.93098926,168.66,168.55,21.43532351]
[1762186855005,9.93098926,168.66,168.46,29.67981842]
[1762186855006,14.67430598,168.62,168.56,0.67]
[1762186855567,20.592,168.65,168.37,29.69536131]
[1762186855568,9.93098926,168.59,168.52,0.67]
[1762186855770,4.88547829,168.55,168.46,14.84030104]
[1762186855979,0.14216157,168.54,168.47,0.67]
[1762186856180,4.88547829,168.53,168.47,0.67]
[1762186856378,0.14216157,168.57,168.47,6.60571512]
[1762186856579,0.14216157,168.59,168.47,21.4451524]
[1762186856775,4.88547829,168.57,168.48,0.67]
[1762186856983,4.88547829,168.56,168.48,0.67]
[1762186857186,0.14216157,168.55,168.48,0.67]
[1762186857511,0.14216157,168.54,168.48,0.67]
[1762186858094,4.88547829,168.52,168.41,0.2]
[1762186858396,4.88547829,168.53,168.46,0.67]
[1762186858692,4.88547829,168.53,168.46,6.60611458]
[1762186858895,4.88547829,168.53,168.46,0.67]
[1762186859477,0.14216157,168.54,168.46,6.60593259]
[1762186859691,9.78882769,168.53,168.46,0.67]
[1762186859987,14.67430598,168.53,168.47,0.67]
[1762186860204,5.93401376,168.52,168.47,0.67]
[1762186860390,4.88547829,168.48,168.42,0.67]
[1762186860791,9.78882769,168.45,168.41,0.2]
[1762186860997,4.85352799,168.53,168.42,0.67]
[1762186861168,4.88547829,168.54,168.42,0.67]
[1762186861373,9.78882769,168.53,168.42,0.67]
[1762186862002,15.72160813,168.56,168.42,0.67]
[1762186862210,9.78882769,168.49,168.42,0.67]
[1762186862528,0.14216157,168.48,168.42,21.45127377]
[1762186862706,0.14216157,168.48,168.42,0.67]
[1762186862868,0.14216157,168.48,168.43,0.66]
[1762186863205,0.14216157,168.48,168.41,0.2]
[1762186863206,9.93098926,168.45,168.41,0.2]
[1762186863382,9.93098926,168.53,168.42,0.66]
[1762186863696,0.14216157,168.51,168.42,0.66]
[1762186864204,6.07682205,168.51,168.42,6.59719992]
[1762186864374,0.14216157,168.47,168.42,0.66]
[1762186864791,9.93098926,168.44,168.41,0.2]
[1762186865095,5.02763986,168.42,168.41,0.2]
[1762186865301,4.68755171,168.44,168.41,0.2]
[1762186865473,0.14216157,168.43,168.41,0.2]
[1762186865669,14.81646755,168.42,168.41,0.2]
[1762186865889,27.36233375,168.42,168.41,0.2]
[1762186866195,4.88547829,168.43,168.41,0.2]
[1762186866196,0.14216157,168.43,168.41,0.2]
[1762186866606,6.07938077,168.43,168.41,0.2]
[1762186866826,5.02763986,168.42,168.41,0.2]
[1762186867103,18.69943746,168.42,168.41,0.2]
[1762186867280,27.94492263,168.42,168.41,0.2]
[1762186867481,63.24037757,168.42,168.41,0.2]
[1762186867710,52.41736218,168.42,168.41,0.2]
[1762186867900,31.82536218,168.42,168.41,0.2]
[1762186868087,31.82816387,168.42,168.41,0.2]
[1762186868286,42.64926486,168.42,168.41,0.2]
[1762186868484,58.35578657,168.42,168.41,0.2]
[1762186868703,63.24126486,168.42,168.41,0.2]
[1762186869282,52.41824947,168.42,168.41,0.2]
[1762186869481,4.71329963,168.44,168.41,0.86]
[1762186869687,9.8231902,168.45,168.41,0.2]
[1762186869911,4.88547829,168.42,168.41,0.2]
[1762186870086,8.91417798,168.42,168.41,0.2]
[1762186870290,4.02869969,168.42,168.41,0.2]
[1762186870594,22.5082262,168.46,168.41,0.86]
[1762186870793,4.85352799,168.53,168.42,0.66]
[1762186870983,3.88745718,168.52,168.42,0.66]
[1762186871185,3.88745718,168.51,168.42,0.66]
[1762186871380,3.88745718,168.5,168.42,0.66]
[1762186871598,3.88745718,168.52,168.42,0.66]
[1762186871797,3.88745718,168.51,168.42,0.66]
[1762186871995,8.77293547,168.5,168.42,0.66]
[1762186872197,13.67628487,168.49,168.42,0.66]
[1762186872397,9.78882769,168.47,168.42,0.66]
[1762186872612,0.14216157,168.44,168.41,0.2]
[1762186872814,4.0315146,168.46,168.41,0.2]
[1762186872815,9.93098926,168.42,168.41,0.2]
[1762186873019,18.70582058,168.42,168.41,0.2]
[1762186873321,3.88935303,168.42,168.41,0.86]
[1762186873619,4.85352799,168.49,168.41,0.86]
[1762186873790,0.14216157,168.45,168.41,0.86]
[1762186873990,3.8909751,168.44,168.41,0.2]
[1762186874200,3.8909751,168.43,168.42,0.66]
[1762186874516,3.8909751,168.43,168.41,0.2]
[1762186874698,26.55112443,168.5,168.41,0.86]
[1762186874699,3.89022159,168.44,168.41,0.86]
[1762186874905,0.14216157,168.45,168.41,0.86]
[1762186875091,3.88781193,168.44,168.41,0.86]
[1762186875290,4.0299735,168.43,168.41,0.86]
[1762186875507,0.14216157,168.45,168.42,0.66]
[1762186875810,3.89113939,168.44,168.42,0.66]
[1762186875989,0.14216157,168.45,168.41,0.2]
[1762186875990,0.14216157,168.42,168.41,0.2]
[1762186876190,13.82212865,168.42,168.41,0.2]
[1762186876404,19.75966575,168.42,168.41,0.2]
[1762186876602,13.82212865,168.42,168.41,0.2]
[1762186877195,3.89113939,168.42,168.41,0.86]
[1762186877626,3.17113939,168.42,168.41,0.86]
[1762186877919,19.52783397,168.47,168.41,0.2]
[1762186878122,0.14216157,168.44,168.41,0.2]
[1762186878626,4.85352799,168.49,168.42,0.66]
[1762186878797,22.52600274,168.55,168.44,20.592]
[1762186879127,22.49773646,168.55,168.44,20.592]
[1762186879333,4.85352799,168.59,168.45,0.66]
[1762186879623,15.52277248,168.59,168.45,0.66]
[1762186879992,9.78882769,168.58,168.45,0.66]
[1762186880314,15.72087651,168.58,168.46,20.77644544]
[1762186880633,15.72087651,168.58,168.45,0.66]
[1762186880916,9.78882769,168.58,168.48,20.592]
[1762186881098,17.94415398,168.59,168.49,0.66]
[1762186881299,5.55352799,168.65,168.49,0.66]
[1762186881512,6.62945978,168.65,168.49,0.66]
[1762186881813,16.34524117,168.65,168.49,0.66]
[1762186882010,4.8303031,168.65,168.53,20.592]
[1762186882317,41.34343687,168.67,168.53,20.592]
[1762186882515,20.75143687,168.67,168.54,21.4265836]
[1762186882895,9.78882769,168.66,168.55,0.66]
[1762186883704,9.78882769,168.67,168.57,20.592]
[1762186883894,9.78882769,168.7,168.58,0.66]
[1762186884103,14.46227746,168.7,168.58,0.66]
[1762186884501,9.78882769,168.68,168.58,27.1838819]
[1762186884693,9.78882769,168.68,168.58,27.1838911]
[1762186884896,4.71251826,168.7,168.59,0.66]
[1762186885097,5.58547829,168.73,168.59,0.66]
[1762186885499,21.44473659,168.72,168.59,0.66]
[1762186885716,26.33021488,168.72,168.59,0.66]
[1762186885900,0.14216157,168.71,168.59,0.66]
[1762186886107,0.14216157,168.63,168.55,0.66]
[1762186886417,0.14216157,168.63,168.56,6.59234828]
[1762186886620,25.78329502,168.63,168.52,5.93397768]
[1762186886916,4.88547829,168.62,168.52,5.93397768]
[1762186887104,6.07238861,168.63,168.53,0.72]
[1762186887301,0.14216157,168.63,168.53,0.72]
[1762186887523,6.07236083,168.63,168.53,0.72]
[1762186888100,9.78882769,168.59,168.53,0.72]
[1762186888316,0.14216157,168.58,168.53,0.72]
[1762186888837,0.14216157,168.58,168.53,6.65366145]
[1762186889041,0.14216157,168.58,168.53,0.72]
[1762186889228,0.14216157,168.58,168.54,0.72]
[1762186889610,0.14216157,168.56,168.49,0.72]
[1762186890506,19.63881544,168.6,168.5,5.9347181]
[1762186890735,0.14216157,168.58,168.5,20.77151335]
[1762186891036,3.91789887,168.6,168.51,0.72]
[1762186891207,0.14216157,168.59,168.51,0.72]
[1762186891633,9.93098926,168.59,168.51,0.72]
[1762186891834,13.84888813,168.59,168.51,0.72]
[1762186892035,5.93087584,168.61,168.51,0.72]
[1762186892544,0.14216157,168.6,168.51,0.72]
[1762186892719,4.06339622,168.6,168.51,6.6542962]
[1762186893022,4.06339622,168.6,168.51,21.49021098]
[1762186893225,0.68,168.65,168.52,0.67]
[1762186893433,0.68,168.65,168.54,20.592]
[1762186893434,3.92669876,168.65,168.54,20.592]
[1762186893814,3.92669876,168.65,168.55,0.67]
[1762186894136,14.8209468,168.69,168.55,0.67]
[1762186894433,9.84846097,168.68,168.55,0.67]
[1762186894634,10.52846097,168.68,168.55,6.60292161]
[1762186894811,32.89223634,168.68,168.55,21.43531555]
[1762186895013,3.92007587,168.67,168.56,0.67]
[1762186895227,9.78882769,168.67,168.56,0.67]
[1762186895638,9.78882769,168.67,168.58,20.592]
[1762186895840,7.54281261,168.7,168.59,0.67]
[1762186896015,17.3316403,168.67,168.58,0.67]
[1762186896214,7.68497418,168.66,168.58,0.67]
[1762186896416,7.68497418,168.66,168.51,29.67182956]
[1762186896417,5.9304946,168.62,168.56,0.67]
[1762186896642,0.14216157,168.61,168.56,0.67]
[1762186896948,17.47380187,168.61,168.52,0.67]
[1762186897115,9.93098926,168.61,168.52,0.67]
[1762186897728,17.47380187,168.61,168.52,0.67]
[1762186898219,0.14216157,168.6,168.52,0.67]
[1762186898535,16.54225701,168.6,168.49,0.67]
[1762186898711,0.14216157,168.59,168.49,0.67]
[1762186899543,9.93098926,168.59,168.49,0.67]
[1762186899839,0.14216157,168.57,168.49,0.67]
[1762186900422,0.14216157,168.57,168.5,5.9347181]
[1762186900619,5.93084633,168.61,168.5,5.9347181]
[1762186900831,0.14216157,168.59,168.51,0.67]
[1762186901131,9.78882769,168.61,168.51,0.67]
[1762186901639,0.14216157,168.57,168.51,0.67]
[1762186901950,0.14216157,168.6,168.51,0.67]
[1762186902239,27.37775401,168.61,168.51,0.67]
[1762186902454,9.78882769,168.62,168.53,20.76781581]
[1762186902827,17.77902656,168.62,168.56,20.592]
[1762186903023,20.74934786,168.68,168.56,20.592]
[1762186903224,0.68,168.69,168.57,0.67]
[1762186903442,6.60733092,168.71,168.57,0.67]
[1762186903619,0.68,168.7,168.57,0.67]
[1762186903814,7.54281261,168.67,168.57,0.67]
[1762186904020,9.93098926,168.66,168.57,0.67]
[1762186904222,17.47380187,168.66,168.57,0.67]
[1762186904447,5.93014291,168.63,168.57,0.67]
[1762186904754,9.93098926,168.64,168.57,0.67]
[1762186905048,9.93098926,168.64,168.41,31.79431917]
[1762186905049,9.78882769,168.6,168.54,0.67]
[1762186905221,0.14216157,168.59,168.54,0.67]
[1762186905422,0.14216157,168.59,168.54,6.60329377]
[1762186905742,8.22281261,168.63,168.54,6.6031868]
[1762186905929,9.93098926,168.62,168.55,0.67]
[1762186906523,0.14216157,168.62,168.56,5.9326056]
[1762186906734,0.14216157,168.62,168.56,6.6026056]
[1762186906935,0.14216157,168.6,168.53,0.67]
[1762186907134,0.14216157,168.58,168.46,20.77644544]
[1762186907343,0.14216157,168.56,168.5,0.67]
[1762186908646,0.14216157,168.56,168.5,6.60460448]
[1762186908940,0.14216157,168.56,168.5,6.60459376]
[1762186909142,20.592,168.62,168.51,0.67]
[1762186909452,30.38082769,168.62,168.51,0.67]
[1762186909822,0.14216157,168.58,168.51,0.67]
[1762186910063,7.68497418,168.58,168.51,0.67]
[1762186910550,5.93225366,168.57,168.51,0.67]
[1762186911048,5.93225366,168.57,168.51,6.60427285]
[1762186911255,5.93225366,168.57,168.51,0.67]
[1762186911762,0.14216157,168.56,168.48,0.67]
[1762186911960,0.14216157,168.54,168.48,0.67]
[1762186912144,7.68497418,168.54,168.48,0.67]
[1762186912537,0.14216157,168.54,168.49,5.93507033]
[1762186912754,13.61842267,168.54,168.48,0.67]
[1762186912958,0.14216157,168.54,168.48,0.67]
[1762186913163,7.54281261,168.58,168.48,6.60532484]
[1762186913456,17.3316403,168.58,168.48,21.44388134]
[1762186913648,0.14216157,168.57,168.49,0.67]
[1762186913957,7.54281261,168.56,168.49,0.67]
[1762186914130,0.14216157,168.55,168.49,0.67]
[1762186914333,17.47380187,168.52,168.46,0.67]
[1762186914652,9.93098926,168.52,168.46,6.60585992]
[1762186914834,9.78882769,168.55,168.46,6.60585992]
[1762186915041,0.14216157,168.55,168.47,0.67]
[1762186915347,13.47437519,168.59,168.47,0.67]
[1762186915536,9.78882769,168.58,168.47,0.67]
[1762186915736,17.3316403,168.58,168.47,0.67]
[1762186916660,165.8,168.63,168.51,20.592]
[1762186916958,4.91050863,168.68,168.51,20.592]
[1762186916959,14.15133416,168.68,168.51,20.592]
[1762186917159,6.60852155,168.68,168.52,0.67]
[1762186917332,18.11283564,168.69,168.56,20.592]
[1762186917833,18.11283564,168.69,168.57,0.67]
[1762186918029,9.78882769,168.68,168.57,0.67]
[1762186918263,18.0116403,168.68,168.57,0.67]
[1762186918439,9.78882769,168.65,168.57,0.67]
[1762186918755,0.14216157,168.65,168.57,0.67]
[1762186918956,9.93098926,168.65,168.57,0.67]
[1762186919146,10.61098926,168.65,168.57,0.67]
[1762186919347,9.93098926,168.64,168.57,6.60204502]
[1762186919832,0.14216157,168.64,168.58,0.67]
[1762186921070,9.78882769,168.68,168.58,6.60172698]
[1762186921366,18.11283564,168.69,168.58,21.43148139]
[1762186921554,18.11283564,168.69,168.59,0.67]
[1762186921740,5.92597037,168.75,168.61,20.592]
[1762186921934,9.78882769,168.74,168.61,20.592]
[1762186922137,13.74642304,168.74,168.62,0.67]
[1762186922346,17.3316403,168.72,168.62,0.67]
[1762186922543,3.95714762,168.71,168.63,5.93014291]
[1762186922762,9.88419788,168.72,168.63,5.93014291]
[1762186922974,0.14216157,168.69,168.61,20.592]
[1762186923265,7.68497418,168.67,168.58,0.72]
[1762186923464,0.14216157,168.65,168.57,5.93225366]
[1762186923679,0.14216157,168.65,168.58,20.592]
[1762186923968,0.14216157,168.65,168.52,0.72]
[1762186923969,0.14216157,168.63,168.54,5.9333096]
[1762186924172,17.3316403,168.6,168.45,29.68090436]
[1762186924375,17.3316403,168.6,168.5,0.72]
[1762186924376,0.14216157,168.57,168.5,0.72]
[1762186924541,0.14216157,168.61,168.5,0.72]
[1762186924737,0.14216157,168.61,168.5,27.24637031]
[1762186924933,0.14216157,168.61,168.51,0.72]
[1762186925139,0.14216157,168.59,168.51,0.72]
[1762186925566,9.93098926,168.63,168.51,0.72]
[1762186925746,9.93098926,168.61,168.51,0.72]
[1762186925951,7.68497418,168.58,168.51,0.72]
[1762186926147,9.93098926,168.63,168.51,0.72]
[1762186926391,4.102962,168.63,168.53,20.592]
[1762186926601,9.78882769,168.66,168.54,20.7665836]
[1762186926893,0.67,168.71,168.57,20.592]
[1762186927059,10.55803723,168.71,168.57,20.592]
[1762186927267,0.67,168.71,168.58,0.72]
[1762186927461,3.96068017,168.72,168.58,21.312]
[1762186927678,0.67,168.72,168.58,21.312]
[1762186927884,3.96068017,168.72,168.59,0.72]
[1762186928492,5.92674081,168.73,168.59,0.72]
[1762186928493,0.67,168.71,168.59,0.72]
[1762186928665,19.67613824,168.73,168.6,20.75919335]
[1762186928863,22.50973779,168.74,168.6,20.75919335]
[1762186928864,3.96068017,168.72,168.6,20.75919335]
[1762186929100,22.50973779,168.74,168.61,0.72]
[1762186929101,9.78882769,168.7,168.61,0.72]
[1762186929273,0.14216157,168.69,168.61,0.72]
[1762186929868,0.14216157,168.67,168.59,27.24338705]
[1762186930069,0.14216157,168.67,168.6,0.72]
[1762186930373,7.68497418,168.67,168.6,0.72]
[1762186930583,7.54281261,168.66,168.6,0.72]
[1762186930769,6.59796703,168.7,168.6,6.65087372]
[1762186930978,9.78882769,168.71,168.6,21.47886897]
[1762186931174,0.14216157,168.7,168.61,0.72]
[1762186931486,4.10285704,168.7,168.61,0.72]
[1762186931996,7.54281261,168.68,168.61,0.72]
[1762186932372,3.96069547,168.7,168.61,0.72]
[1762186932607,9.88774348,168.72,168.62,5.9304946]
[1762186933090,5.92704801,168.72,168.63,0.72]
[1762186933390,9.93098926,168.66,168.58,0.72]
[1762186933591,9.93098926,168.66,168.52,20.76904817]
[1762186933798,0.14216157,168.62,168.53,0.72]
[1762186934494,7.68497418,168.62,168.53,0.72]
[1762186934683,7.68497418,168.62,168.54,5.9333096]
[1762186935072,7.54281261,168.58,168.5,0.72]
[1762186935271,17.3316403,168.6,168.5,0.72]
[1762186935476,0.14216157,168.59,168.5,0.72]
[1762186935670,0.14216157,168.64,168.52,20.592]
[1762186935871,0.14216157,168.64,168.53,0.72]
[1762186936083,0.14216157,168.65,168.53,21.312]
[1762186936475,0.14216157,168.65,168.54,0.72]
[1762186936781,9.78882769,168.7,168.58,20.592]
[1762186936984,13.75159149,168.7,168.59,0.72]
[1762186937186,9.78882769,168.68,168.59,0.72]
[1762186937383,9.78882769,168.66,168.59,0.72]
[1762186937676,0.14216157,168.65,168.59,0.72]
[1762186938296,7.68497418,168.62,168.54,5.93324581]
[1762186938476,0.14216157,168.6,168.53,0.72]
[1762186938678,13.75448708,168.62,168.53,6.65360791]
[1762186939000,0.14216157,168.62,168.53,0.72]
[1762186939193,7.68497418,168.62,168.53,5.93351134]
[1762186939392,7.68497418,168.62,168.54,0.72]
[1762186939590,0.14216157,168.62,168.54,0.72]
[1762186940699,5.93084633,168.61,168.54,0.72]
[1762186940911,0.14216157,168.62,168.54,6.6531228]
[1762186941087,0.14216157,168.63,168.54,6.6531228]
[1762186941274,18.14380187,168.63,168.54,0.72]
[1762186941479,0.14216157,168.61,168.54,0.72]
[1762186941682,9.78882769,168.63,168.54,6.65324575]
[1762186941916,9.78882769,168.64,168.57,20.592]
[1762186942082,3.96910756,168.69,168.58,0.72]
[1762186942405,9.89681637,168.7,168.58,0.72]
[1762186942583,0.67,168.71,168.58,0.72]
[1762186942786,22.52429444,168.74,168.62,20.592]
[1762186942983,23.69794808,168.74,168.62,20.592]
[1762186943181,17.77164893,168.74,168.63,0.72]
[1762186943391,5.92601349,168.75,168.63,0.72]
[1762186943585,4.71728271,168.75,168.63,0.72]
[1762186943787,3.97032118,168.75,168.63,0.72]
[1762186944004,9.78882769,168.74,168.63,0.72]
[1762186944181,0.14216157,168.73,168.63,0.72]
[1762186944506,9.78882769,168.74,168.63,0.72]
[1762186944711,9.78882769,168.74,168.64,5.92979127]
[1762186944884,9.78882769,168.77,168.67,20.592]
[1762186945079,9.78882769,168.79,168.67,20.592]
[1762186945280,4.8014317,168.79,168.68,0.72]
[1762186945508,7.54281261,168.77,168.68,0.72]
[1762186945717,17.3316403,168.74,168.65,0.72]
[1762186945885,0.14216157,168.73,168.65,0.72]
[1762186946405,9.78882769,168.72,168.65,0.72]
[1762186946597,0.14216157,168.71,168.65,0.72]
[1762186946797,6.06961907,168.71,168.65,0.72]
[1762186947010,0.14216157,168.73,168.65,6.64939702]
[1762186947208,0.14216157,168.73,168.66,0.7]
[1762186947583,0.14216157,168.73,168.55,0.14216157]
[1762186947584,0.14216157,168.71,168.55,0.14216157]
[1762186947786,9.78882769,168.72,168.63,0.7]
[1762186948900,14.81181047,168.71,168.63,0.7]
[1762186949104,10.60098926,168.71,168.53,20.76781581]
[1762186949404,5.02298278,168.65,168.53,20.76781581]
[1762186949607,0.14216157,168.63,168.54,0.7]
[1762186950185,5.02298278,168.63,168.54,0.7]
[1762186950387,4.88082121,168.62,168.54,0.7]
[1762186950589,9.93098926,168.63,168.54,0.7]
[1762186950998,4.88082121,168.62,168.54,0.7]
[1762186951182,14.6696489,168.62,168.54,0.7]
[1762186951383,14.6696489,168.62,168.5,0.7]
[1762186951384,9.78882769,168.59,168.5,0.7]
[1762186951598,4.88082121,168.57,168.5,0.7]
[1762186951908,9.78882769,168.57,168.5,0.7]
[1762186952637,4.91050863,168.66,168.5,0.7]
[1762186952818,10.45882769,168.65,168.54,20.592]
[1762186953188,15.49103062,168.68,168.55,0.71]
[1762186953391,9.78882769,168.67,168.55,0.71]
[1762186953587,11.47780082,168.72,168.55,0.71]
[1762186953808,4.88082121,168.74,168.59,20.592]
[1762186953991,3.96186364,168.77,168.6,0.71]
[1762186954307,29.45495865,168.79,168.6,0.71]
[1762186954495,4.88082121,168.69,168.6,0.71]
[1762186954796,20.5984536,168.67,168.6,0.71]
[1762186954987,14.6696489,168.67,168.6,6.64118844]
[1762186955189,0.67,168.71,168.6,6.64104535]
[1762186955190,5.55082121,168.71,168.6,6.64104535]
[1762186955398,11.47823607,168.71,168.61,0.71]
[1762186955608,4.88082121,168.7,168.61,0.71]